fUSD/lending_fUSD_20240103
["ID","MTS","AMOUNT","RATE_DAILY","PERIOD"]
[309977614,1704253845984,-461.42304442,0.00034879,2]
[309977615,1704253845993,-102799.23555162,0.00034879,3]
[309977616,1704253846092,-4647.005672,0.00034879,3]
[309977617,1704253846148,-4597.58630979,0.00034879,3]
[309977618,1704253846310,-500.0,0.00032876,2]
[309977619,1704253846319,-11829.33927254,0.00034879,3]
[309977620,1704253846331,-1207.22335713,0.00034879,3]
[309977680,1704254048226,999.999999,0.0002,2]
[309977698,1704254320261,261.31,0.00029,30]
[309977731,1704255032261,-281.33682487,0.00022669,2]
[309977732,1704255032270,-162.13589043,0.000228,2]
[309977733,1704255032280,-274.67589155,0.0002289,2]
[309977734,1704255032295,-1924.92861723,0.0002289,2]
[309977735,1704255032305,-1172.01022986,0.00022899,2]
[309977736,1704255032473,-1937.77820977,0.00022899,2]
[309977737,1704255032485,-22008.87189843,0.00022899,2]
[309977738,1704255032494,-464.5955,0.000229,2]
[309977739,1704255032504,-783.6211,0.000229,2]
[309977740,1704255032513,-4560.83446467,0.000229,2]
[309977741,1704255032525,-32811.78399744,0.000229,2]
[309977742,1704255032536,-980.74463861,0.000229,2]
[309977743,1704255032548,-553.09839258,0.000229,2]
[309977744,1704255038169,-89228.1885067,0.000229,2]
[309977745,1704255038180,-151.16726684,0.0002299,2]
[309977746,1704255038189,-586.03891688,0.00022999,2]
[309977747,1704255038199,-698317.54934674,0.00023,2]
[309977748,1704255038389,-261112.33605252,0.00023,2]
[309977749,1704255038399,-313.47484417,0.00024716,2]
[309977750,1704255038410,-162.13589043,0.00024816,2]
[309977751,1704255038420,-374.38742826,0.00026597,2]
[309977752,1704255038430,-213.24099873,0.00026697,3]
[309977753,1704255038440,-162.13589043,0.00026832,2]
[309977754,1704255038449,-1880.95376592,0.00027097,2]
[309977755,1704255038459,-313.47484415,0.00027235,2]
[309977756,1704255038469,-155.0,0.00027397,2]
[309977757,1704255038479,-9401.42,0.00027397,2]
[309977758,1704255038488,-1880.9537659,0.00027852,2]
[309977759,1704255038499,-211.0,0.00028161,2]
[309977760,1704255038509,-1032.36054589,0.0002832,2]
[309977761,1704255038520,-1880.9537659,0.00028607,2]
[309977762,1704255038529,-157.65377878,0.00028767,2]
[309977763,1704255038539,-162.13589043,0.00028848,2]
[309977764,1704255038548,-1880.9537659,0.00029361,2]
[309977765,1704255038557,-156.81,0.00029448,2]
[309977766,1704255038566,-2000.0,0.00029585,2]
[309977767,1704255038575,-3376.35,0.00029684,2]
[309977768,1704255038584,-186.67,0.00029739,2]
[309977769,1704255038593,-313.47484415,0.00029754,2]
[309977770,1704255038603,-763.24,0.00029757,2]
[309977771,1704255038612,-150.0,0.00029776,2]
[309977772,1704255038621,-413.02390415,0.0002996,2]
[309977773,1704255038630,-155.0,0.0003,2]
[309977774,1704255038639,-46025.37837322,0.0003,10]
[309977775,1704255038648,-500.0,0.0003,2]
[309977776,1704255038657,-1880.9537659,0.00030116,2]
[309977779,1704255038673,-156.67,0.00030119,2]
[309977781,1704255038687,-197.96,0.00030254,2]
[309977783,1704255038697,-156.81,0.00030693,2]
[309977785,1704255038706,-191.682,0.0003072,2]
[309977787,1704255038715,-5969.818,0.0003072,2]
[309977789,1704255038725,-592.915,0.0003072,2]
[309977791,1704255038734,-277.618,0.0003072,2]
[309977793,1704255038743,-162.13589043,0.00030864,2]
[309977795,1704255038753,-1880.9537659,0.00030871,2]
[309977796,1704255038762,-1000.0,0.00031232,2]
[309977798,1704255038772,-433.90633512,0.00031232,2]
[309977800,1704255038782,-45068.28310792,0.00031232,2]
[309977802,1704255038791,-236.76,0.00031261,2]
[309977804,1704255038800,-717.53,0.00031549,2]
[309977806,1704255038810,-1000.0,0.00031599,2]
[309977809,1704255038820,-1880.9537659,0.00031626,3]
[309977810,1704255038831,-156.67,0.00031689,2]
[309977812,1704255038840,-159.6,0.00031741,2]
[309977814,1704255038850,-725.13,0.00031851,2]
[309977816,1704255038859,-150.27927395,0.000319,2]
[309977819,1704255038869,-150.27927391,0.000319,2]
[309977820,1704255038878,-150.27927391,0.000319,2]
[309977822,1704255038888,-150.27927391,0.000319,2]
[309977823,1704255038898,-150.27927391,0.000319,2]
[309977824,1704255038908,-150.27927391,0.000319,2]
[309977825,1704255038917,-150.27927391,0.000319,2]
[309977826,1704255038927,-150.27927391,0.000319,2]
[309977827,1704255038937,-150.27927391,0.000319,2]
[309977828,1704255038946,-150.27927391,0.000319,2]
[309977829,1704255038955,-156.81,0.00031939,2]
[309977830,1704255038966,-150.27927391,0.00031997,2]
[309977831,1704255038975,-500.0,0.00032,2]
[309977832,1704255038988,-736.18,0.00032216,2]
[309977833,1704255038997,-6467.01018134,0.00032254,7]
[309977834,1704255039006,-806.11129959,0.00032254,7]
[309977835,1704255039016,-6255.41153945,0.00032254,7]
[309977836,1704255039026,-313.47484415,0.00032272,2]
[309977837,1704255039035,-3300.32768599,0.00032381,14]
[309977838,1704255039045,-1880.9537659,0.00032381,4]
[309977839,1704255039054,-150.27927391,0.00032497,2]
[309977840,1704255039063,-333.40103,0.00032498,2]
[309977841,1704255039073,-333.40103,0.00032598,2]
[309977842,1704255039083,-333.40103,0.00032698,2]
[309977843,1704255039092,-23739.1991,0.00032776,2]
[309977844,1704255039102,-1000.0,0.00032776,2]
[309977845,1704255039110,-2427.0936,0.00032776,2]
[309977846,1704255039117,-675.6615,0.00032776,3]
[309977847,1704255039124,-197.09171864,0.00032776,6]
[309977848,1704255039132,-253.37928636,0.00032776,2]
[309977849,1704255039140,-190.79712594,0.00032776,2]
[309977850,1704255039149,-363.07248156,0.00032776,2]
[309977851,1704255039159,-333.40103,0.00032798,2]
[309977852,1704255039168,-153.47026344,0.000328,2]
[309977853,1704255039179,-151.16726684,0.00032866,2]
[309977854,1704255039189,-151.0,0.00032876,7]
[309977855,1704255039199,-151.0,0.00032876,7]
[309977856,1704255039209,-500.0,0.00032876,2]
[309977857,1704255039219,-536.89188604,0.00032876,2]
[309977858,1704255039228,-500.0,0.00032876,2]
[309977859,1704255039238,-516.65327772,0.00032876,2]
[309977860,1704255039248,-540.30988009,0.00032876,2]
[309977861,1704255039257,-538.3439748,0.00032876,2]
[309977862,1704255039267,-180.15673175,0.00032876,2]
[309977863,1704255039279,-500.57182133,0.00032876,2]
[309977864,1704255039289,-500.0,0.00032876,2]
[309977865,1704255039299,-500.0,0.00032876,2]
[309977866,1704255039308,-500.0,0.00032876,2]
[309977867,1704255039318,-500.0,0.00032876,2]
[309977868,1704255039328,-500.0,0.00032876,2]
[309977869,1704255039337,-500.0,0.00032876,2]
[309977870,1704255039348,-517.99270615,0.00032876,2]
[309977871,1704255039357,-500.0,0.00032876,2]
[309977872,1704255039367,-500.0,0.00032876,2]
[309977873,1704255039377,-528.76764957,0.00032876,2]
[309977874,1704255039386,-500.0,0.00032876,2]
[309977875,1704255039396,-478.76796691,0.00032876,2]
[309977876,1704255039406,-500.0,0.00032876,2]
[309977877,1704255039415,-500.0,0.00032876,2]
[309977878,1704255039426,-548.17826534,0.00032876,2]
[309977879,1704255039436,-628.56575904,0.00032876,2]
[309977880,1704255039446,-500.0,0.00032876,2]
[309977881,1704255039455,-642.36660536,0.00032876,2]
[309977882,1704255039464,-500.0,0.00032876,2]
[309977883,1704255039475,-500.0,0.00032876,2]
[309977884,1704255039484,-500.0,0.00032876,2]
[309977885,1704255039493,-500.0,0.00032876,2]
[309977886,1704255039503,-609.88622738,0.00032876,2]
[309977887,1704255039512,-481.25942272,0.00032876,2]
[309977888,1704255039521,-591.53687181,0.00032876,2]
[309977889,1704255039530,-531.01551358,0.00032876,2]
[309977890,1704255039540,-500.0,0.00032876,2]
[309977891,1704255039549,-151.35356458,0.00032876,2]
[309977892,1704255039558,-500.0,0.00032876,2]
[309977893,1704255039568,-500.0,0.00032876,2]
[309977894,1704255039576,-500.0,0.00032876,2]
[309977895,1704255039586,-500.0,0.00032876,2]
[309977896,1704255039596,-500.0,0.00032876,2]
[309977897,1704255039606,-500.0,0.00032876,2]
[309977898,1704255039615,-500.0,0.00032876,2]
[309977899,1704255039625,-500.0,0.00032876,2]
[309977900,1704255039634,-500.0,0.00032876,2]
[309977901,1704255039644,-500.0,0.00032876,2]
[309977902,1704255039653,-500.0,0.00032876,2]
[309977903,1704255039662,-500.0,0.00032876,2]
[309977904,1704255039673,-500.0,0.00032876,2]
[309977905,1704255039682,-500.0,0.00032876,2]
[309977906,1704255039692,-553.46954806,0.00032876,2]
[309977907,1704255039701,-500.0,0.00032876,2]
[309977908,1704255039711,-500.0,0.00032876,2]
[309977909,1704255039720,-500.0,0.00032876,2]
[309977910,1704255039733,-519.67188524,0.00032876,2]
[309977911,1704255039742,-500.0,0.00032876,2]
[309977912,1704255039752,-500.0,0.00032876,2]
[309977913,1704255039761,-500.0,0.00032876,2]
[309977914,1704255039770,-500.0,0.00032876,2]
[309977915,1704255039781,-500.0,0.00032876,2]
[309977916,1704255039791,-514.86607164,0.00032876,2]
[309977917,1704255039800,-500.0,0.00032876,2]
[309977918,1704255039810,-500.0,0.00032876,2]
[309977919,1704255039820,-557.86754776,0.00032876,2]
[309977920,1704255039830,-513.9164563,0.00032876,2]
[309977921,1704255039839,-524.34425284,0.00032876,2]
[309977922,1704255039849,-500.0,0.00032876,2]
[309977923,1704255039858,-500.0,0.00032876,2]
[309977924,1704255039867,-500.0,0.00032876,2]
[309977925,1704255039878,-500.0,0.00032876,2]
[309977926,1704255039888,-500.0,0.00032876,2]
[309977927,1704255039898,-500.0,0.00032876,2]
[309977928,1704255039908,-503.24722858,0.00032876,2]
[309977929,1704255039917,-240.68,0.00032876,2]
[309977930,1704255039926,-500.0,0.00032876,2]
[309977931,1704255039936,-500.0,0.00032876,2]
[309977932,1704255039958,-543.2312831,0.00032876,2]
[309977933,1704255039972,-542.86210604,0.00032876,2]
[309977934,1704255039985,-500.0,0.00032876,2]
[309977935,1704255039998,-500.0,0.00032876,2]
[309977936,1704255040012,-175.46616998,0.00032876,2]
[309977937,1704255040024,-500.0,0.00032876,2]
[309977938,1704255040035,-500.0,0.00032876,2]
[309977939,1704255040046,-500.0,0.00032876,2]
[309977940,1704255040059,-500.0,0.00032876,2]
[309977941,1704255040071,-500.0,0.00032876,2]
[309977942,1704255040082,-500.0,0.00032876,2]
[309977943,1704255040094,-500.0,0.00032876,2]
[309977944,1704255040106,-500.0,0.00032876,2]
[309977945,1704255040119,-500.0,0.00032876,2]
[309977946,1704255040131,-556.30429409,0.00032876,2]
[309977947,1704255040143,-500.0,0.00032876,2]
[309977948,1704255040155,-590.32363325,0.00032876,2]
[309977949,1704255040166,-500.0,0.00032876,2]
[309977950,1704255040175,-500.0,0.00032876,2]
[309977951,1704255040186,-500.0,0.00032876,2]
[309977952,1704255040199,-500.0,0.00032876,2]
[309977953,1704255040212,-500.0,0.00032876,2]
[309977954,1704255040223,-419.72257178,0.00032876,2]
[309977955,1704255040235,-500.0,0.00032876,2]
[309977956,1704255040247,-526.3011699,0.00032876,2]
[309977957,1704255040259,-527.00028187,0.00032876,2]
[309977958,1704255040271,-500.0,0.00032876,2]
[309977959,1704255040283,-500.0,0.00032876,2]
[309977960,1704255040294,-500.0,0.00032876,2]
[309977961,1704255040304,-500.0,0.00032876,2]
[309977962,1704255040314,-500.0,0.00032876,2]
[309977963,1704255040329,-500.0,0.00032876,2]
[309977964,1704255040342,-500.0,0.00032876,2]
[309977965,1704255040354,-582.00733821,0.00032876,2]
[309977966,1704255040366,-500.0,0.00032876,2]
[309977967,1704255040380,-500.0,0.00032876,2]
[309977968,1704255040393,-500.0,0.00032876,2]
[309977969,1704255040406,-637.16,0.00032876,2]
[309977970,1704255040418,-500.0,0.00032876,2]
[309977971,1704255040431,-500.0,0.00032876,2]
[309977972,1704255040443,-500.0,0.00032876,2]
[309977973,1704255040454,-500.0,0.00032876,2]
[309977974,1704255040466,-500.0,0.00032876,2]
[309977975,1704255040479,-500.0,0.00032876,2]
[309977976,1704255040491,-500.0,0.00032876,2]
[309977977,1704255040503,-500.0,0.00032876,2]
[309977978,1704255040515,-380.40057767,0.00032876,2]
[309977979,1704255040528,-188.50098239,0.00032876,2]
[309977980,1704255040539,-500.0,0.00032876,2]
[309977981,1704255040550,-500.0,0.00032876,2]
[309977982,1704255040561,-500.0,0.00032876,2]
[309977983,1704255040580,-500.0,0.00032876,2]
[309977984,1704255040592,-206.0,0.00032876,2]
[309977985,1704255040604,-552.1793363,0.00032876,2]
[309977986,1704255040616,-500.0,0.00032876,2]
[309977987,1704255040630,-500.0,0.00032876,2]
[309977988,1704255040645,-500.0,0.00032876,2]
[309977989,1704255040660,-500.0,0.00032876,2]
[309977990,1704255040672,-500.0,0.00032876,2]
[309977991,1704255040684,-500.0,0.00032876,2]
[309977992,1704255040701,-500.0,0.00032876,2]
[309977993,1704255040716,-500.0,0.00032876,2]
[309977995,1704255040727,-544.26528684,0.00032876,2]
[309977998,1704255040738,-429.32663511,0.00032876,2]
[309978000,1704255040749,-500.0,0.00032876,2]
[309978002,1704255040760,-559.30806162,0.00032876,2]
[309978004,1704255040770,-646.44308275,0.00032876,2]
[309978006,1704255040782,-500.0,0.00032876,2]
[309978009,1704255040794,-500.0,0.00032876,2]
[309978011,1704255040805,-500.0,0.00032876,2]
[309978013,1704255040818,-500.0,0.00032876,2]
[309978015,1704255040829,-646.79778481,0.00032876,2]
[309978016,1704255040843,-507.33884803,0.00032876,2]
[309978017,1704255040855,-500.0,0.00032876,2]
[309978018,1704255040867,-500.0,0.00032876,2]
[309978019,1704255040881,-500.0,0.00032876,2]
[309978020,1704255040895,-500.0,0.00032876,2]
[309978021,1704255040908,-500.0,0.00032876,2]
[309978022,1704255040928,-500.0,0.00032876,2]
[309978023,1704255040941,-500.0,0.00032876,2]
[309978024,1704255040956,-500.0,0.00032876,2]
[309978025,1704255040969,-500.0,0.00032876,2]
[309978026,1704255040981,-500.0,0.00032876,2]
[309978027,1704255040993,-500.0,0.00032876,2]
[309978028,1704255041004,-500.0,0.00032876,2]
[309978029,1704255041017,-500.0,0.00032876,2]
[309978030,1704255041028,-554.79166576,0.00032876,2]
[309978031,1704255041039,-500.0,0.00032876,2]
[309978032,1704255041051,-562.95165969,0.00032876,2]
[309978033,1704255041062,-500.0,0.00032876,2]
[309978034,1704255041074,-500.0,0.00032876,2]
[309978035,1704255041085,-500.0,0.00032876,2]
[309978036,1704255041097,-500.0,0.00032876,2]
[309978037,1704255041110,-500.0,0.00032876,2]
[309978038,1704255041122,-546.17884206,0.00032876,2]
[309978039,1704255041134,-564.38053594,0.00032876,2]
[309978040,1704255041145,-533.46360191,0.00032876,2]
[309978041,1704255041158,-150.0,0.00032876,2]
[309978042,1704255041169,-150.0,0.00032876,2]
[309978043,1704255041180,-500.0,0.00032876,2]
[309978044,1704255041192,-551.70076853,0.00032876,2]
[309978045,1704255041204,-500.0,0.00032876,2]
[309978046,1704255041215,-500.0,0.00032876,2]
[309978047,1704255041226,-500.0,0.00032876,2]
[309978048,1704255041236,-500.0,0.00032876,2]
[309978049,1704255041247,-500.0,0.00032876,2]
[309978050,1704255041258,-500.0,0.00032876,2]
[309978051,1704255041269,-500.0,0.00032876,2]
[309978052,1704255041279,-500.0,0.00032876,2]
[309978053,1704255041290,-544.98961195,0.00032876,2]
[309978054,1704255041302,-500.0,0.00032876,2]
[309978055,1704255041314,-544.22148994,0.00032876,2]
[309978056,1704255041326,-500.0,0.00032876,2]
[309978057,1704255041337,-500.0,0.00032876,2]
[309978058,1704255041352,-500.0,0.00032876,2]
[309978059,1704255041363,-500.0,0.00032876,2]
[309978060,1704255041375,-525.15675903,0.00032876,2]
[309978061,1704255041386,-590.82423673,0.00032876,2]
[309978062,1704255041396,-500.0,0.00032876,2]
[309978063,1704255041411,-500.0,0.00032876,2]
[309978064,1704255041423,-500.0,0.00032876,2]
[309978065,1704255041435,-526.84928507,0.00032876,2]
[309978066,1704255041446,-500.0,0.00032876,2]
[309978067,1704255041458,-550.63083087,0.00032876,2]
[309978068,1704255041468,-551.14978283,0.00032876,2]
[309978069,1704255041480,-500.0,0.00032876,2]
[309978070,1704255041491,-500.0,0.00032876,2]
[309978071,1704255041503,-500.0,0.00032876,2]
[309978072,1704255041513,-500.0,0.00032876,2]
[309978073,1704255041525,-534.78207259,0.00032876,2]
[309978074,1704255041536,-500.0,0.00032876,2]
[309978075,1704255041547,-545.15797272,0.00032876,2]
[309978076,1704255041558,-500.0,0.00032876,2]
[309978077,1704255041568,-530.82140663,0.00032876,2]
[309978078,1704255041579,-500.0,0.00032876,2]
[309978079,1704255041590,-549.80334498,0.00032876,2]
[309978080,1704255041602,-259.89262497,0.00032876,2]
[309978081,1704255041612,-564.40580799,0.00032876,2]
[309978082,1704255041623,-500.0,0.00032876,2]
[309978083,1704255041634,-531.81144876,0.00032876,2]
[309978084,1704255041645,-533.63375283,0.00032876,2]
[309978085,1704255041655,-500.0,0.00032876,2]
[309978086,1704255041666,-500.0,0.00032876,2]
[309978087,1704255041676,-500.0,0.00032876,2]
[309978088,1704255041687,-500.0,0.00032876,2]
[309978089,1704255041697,-500.0,0.00032876,2]
[309978090,1704255041708,-540.15165072,0.00032876,2]
[309978091,1704255041718,-588.83555041,0.00032876,2]
[309978092,1704255041729,-613.57969012,0.00032876,2]
[309978093,1704255041739,-500.0,0.00032876,2]
[309978094,1704255041749,-500.0,0.00032876,2]
[309978095,1704255041760,-500.0,0.00032876,2]
[309978096,1704255041771,-500.0,0.00032876,2]
[309978097,1704255041781,-500.0,0.00032876,2]
[309978098,1704255041791,-500.0,0.00032876,2]
[309978099,1704255041802,-500.0,0.00032876,2]
[309978100,1704255041812,-500.0,0.00032876,2]
[309978101,1704255041823,-503.1,0.00032876,2]
[309978102,1704255041833,-500.0,0.00032876,2]
[309978103,1704255041844,-500.0,0.00032876,2]
[309978104,1704255041855,-500.0,0.00032876,2]
[309978105,1704255041865,-500.0,0.00032876,2]
[309978106,1704255041876,-508.29922914,0.00032876,2]
[309978107,1704255041886,-500.0,0.00032876,2]
[309978108,1704255041897,-510.28417537,0.00032876,2]
[309978109,1704255041907,-500.0,0.00032876,2]
[309978110,1704255041918,-500.0,0.00032876,2]
[309978111,1704255041928,-500.0,0.00032876,2]
[309978112,1704255041937,-502.21132361,0.00032876,2]
[309978113,1704255041948,-500.0,0.00032876,2]
[309978114,1704255041958,-636.6,0.00032876,2]
[309978115,1704255041967,-232.50426203,0.00032876,2]
[309978116,1704255041977,-558.1204257,0.00032876,2]
[309978117,1704255041987,-500.0,0.00032876,2]
[309978118,1704255041998,-515.58135054,0.00032876,2]
[309978119,1704255042008,-209.21767574,0.00032876,2]
[309978121,1704255042019,-575.86543565,0.00032876,2]
[309978123,1704255042029,-500.0,0.00032876,2]
[309978125,1704255042040,-546.1696226,0.00032876,2]
[309978127,1704255042050,-500.0,0.00032876,2]
[309978129,1704255042061,-500.0,0.00032876,2]
[309978131,1704255042071,-500.0,0.00032876,2]
[309978133,1704255042082,-500.0,0.00032876,2]
[309978135,1704255042093,-500.0,0.00032876,2]
[309978137,1704255042104,-547.72967406,0.00032876,2]
[309978139,1704255042117,-500.0,0.00032876,2]
[309978141,1704255042128,-500.0,0.00032876,2]
[309978143,1704255042140,-500.0,0.00032876,2]
[309978144,1704255042151,-500.0,0.00032876,2]
[309978145,1704255042163,-500.0,0.00032876,2]
[309978146,1704255042175,-500.0,0.00032876,2]
[309978147,1704255042187,-500.0,0.00032876,2]
[309978148,1704255042198,-500.0,0.00032876,2]
[309978149,1704255042210,-151.88,0.00032876,2]
[309978150,1704255042221,-500.0,0.00032876,2]
[309978151,1704255042231,-500.0,0.00032876,2]
[309978152,1704255042242,-500.0,0.00032876,2]
[309978153,1704255042253,-367.4913519,0.00032876,2]
[309978154,1704255042263,-500.0,0.00032876,2]
[309978155,1704255042275,-500.0,0.00032876,2]
[309978156,1704255042287,-500.0,0.00032876,2]
[309978157,1704255042558,-500.0,0.00032876,2]
[309978158,1704255042568,-500.0,0.00032876,2]
[309978159,1704255042578,-500.0,0.00032876,2]
[309978160,1704255042587,-500.0,0.00032876,2]
[309978161,1704255042596,-161.45630346,0.00032876,2]
[309978162,1704255042606,-150.96961696,0.00032876,2]
[309978163,1704255042615,-509.18555778,0.00032876,2]
[309978164,1704255042624,-576.87117663,0.00032876,2]
[309978165,1704255042635,-517.73224503,0.00032876,2]
[309978166,1704255042645,-500.0,0.00032876,2]
[309978167,1704255042655,-523.01084788,0.00032876,2]
[309978168,1704255042665,-532.85961036,0.00032876,2]
[309978169,1704255042675,-500.0,0.00032876,2]
[309978170,1704255042685,-500.0,0.00032876,2]
[309978171,1704255042695,-500.0,0.00032876,2]
[309978172,1704255042705,-500.0,0.00032876,2]
[309978173,1704255042715,-500.0,0.00032876,2]
[309978174,1704255042725,-500.0,0.00032876,2]
[309978175,1704255042735,-500.0,0.00032876,2]
[309978176,1704255042746,-500.0,0.00032876,2]
[309978177,1704255042755,-500.0,0.00032876,2]
[309978178,1704255042765,-251.60280565,0.00032876,2]
[309978179,1704255042774,-604.36963586,0.00032876,2]
[309978180,1704255042784,-552.72765491,0.00032876,2]
[309978181,1704255042792,-500.0,0.00032876,2]
[309978182,1704255042802,-500.0,0.00032876,2]
[309978183,1704255042810,-500.0,0.00032876,2]
[309978184,1704255042819,-500.0,0.00032876,2]
[309978185,1704255042828,-500.0,0.00032876,2]
[309978186,1704255042837,-636.91199102,0.00032876,2]
[309978187,1704255042846,-512.50419237,0.00032876,2]
[309978188,1704255042855,-500.0,0.00032876,2]
[309978189,1704255042865,-500.0,0.00032876,2]
[309978190,1704255042874,-500.0,0.00032876,2]
[309978191,1704255042883,-500.0,0.00032876,2]
[309978192,1704255042893,-439.36,0.00032876,2]
[309978193,1704255042902,-500.0,0.00032876,2]
[309978194,1704255042911,-500.0,0.00032876,2]
[309978195,1704255042920,-500.0,0.00032876,2]
[309978196,1704255042929,-500.0,0.00032876,2]
[309978197,1704255042938,-500.0,0.00032876,2]
[309978198,1704255042947,-512.16028348,0.00032876,2]
[309978199,1704255042957,-500.0,0.00032876,2]
[309978200,1704255042966,-500.0,0.00032876,2]
[309978201,1704255042975,-500.0,0.00032876,2]
[309978202,1704255042985,-500.0,0.00032876,2]
[309978203,1704255042995,-500.0,0.00032876,2]
[309978204,1704255043004,-500.0,0.00032876,2]
[309978205,1704255043013,-506.72259648,0.00032876,2]
[309978207,1704255043022,-500.0,0.00032876,2]
[309978208,1704255043031,-500.0,0.00032876,2]
[309978209,1704255043040,-500.000001,0.00032876,2]
[309978210,1704255043049,-560.44,0.00032876,2]
[309978211,1704255043058,-500.0,0.00032876,2]
[309978212,1704255043067,-628.66783491,0.00032876,2]
[309978213,1704255043076,-500.0,0.00032876,2]
[309978214,1704255043085,-500.0,0.00032876,2]
[309978215,1704255043093,-500.0,0.00032876,2]
[309978216,1704255043103,-500.0,0.00032876,2]
[309978217,1704255043111,-500.0,0.00032876,2]
[309978218,1704255043120,-500.0,0.00032876,2]
[309978219,1704255043129,-500.0,0.00032876,2]
[309978220,1704255043138,-500.0,0.00032876,2]
[309978221,1704255043148,-500.0,0.00032876,2]
[309978222,1704255043156,-551.86724417,0.00032876,2]
[309978223,1704255043165,-641.01559974,0.00032876,2]
[309978224,1704255043174,-552.67169124,0.00032876,2]
[309978225,1704255043183,-500.0,0.00032876,2]
[309978226,1704255043192,-500.0,0.00032876,2]
[309978227,1704255043201,-500.0,0.00032876,2]
[309978228,1704255043210,-500.0,0.00032876,2]
[309978229,1704255043219,-588.50993247,0.00032876,2]
[309978230,1704255043228,-500.0,0.00032876,2]
[309978231,1704255043237,-500.0,0.00032876,2]
[309978232,1704255043246,-521.58013314,0.00032876,2]
[309978233,1704255043255,-500.0,0.00032876,2]
[309978234,1704255043264,-500.0,0.00032876,2]
[309978235,1704255043272,-500.0,0.00032876,2]
[309978236,1704255043281,-500.0,0.00032876,2]
[309978237,1704255043290,-500.0,0.00032876,2]
[309978238,1704255043299,-500.0,0.00032876,2]
[309978239,1704255043307,-500.0,0.00032876,2]
[309978240,1704255043316,-500.0,0.00032876,2]
[309978241,1704255043326,-184.80809756,0.00032876,2]
[309978242,1704255043335,-500.0,0.00032876,2]
[309978243,1704255043344,-500.0,0.00032876,2]
[309978244,1704255043354,-500.0,0.00032876,2]
[309978245,1704255043363,-500.0,0.00032876,2]
[309978246,1704255043371,-500.0,0.00032876,2]
[309978247,1704255043380,-500.0,0.00032876,2]
[309978248,1704255043390,-500.0,0.00032876,2]
[309978249,1704255043399,-500.0,0.00032876,2]
[309978250,1704255043407,-500.0,0.00032876,2]
[309978251,1704255043417,-500.0,0.00032876,2]
[309978252,1704255043426,-500.0,0.00032876,2]
[309978253,1704255043435,-500.0,0.00032876,2]
[309978254,1704255043444,-500.0,0.00032876,2]
[309978255,1704255043453,-500.0,0.00032876,2]
[309978256,1704255043462,-500.0,0.00032876,2]
[309978257,1704255043472,-500.0,0.00032876,2]
[309978258,1704255043481,-500.0,0.00032876,2]
[309978259,1704255043490,-565.06436524,0.00032876,2]
[309978260,1704255043499,-521.80694885,0.00032876,2]
[309978262,1704255043508,-490.12952028,0.00032876,2]
[309978264,1704255043517,-500.0,0.00032876,2]
[309978266,1704255043527,-201.86208845,0.00032876,2]
[309978267,1704255043536,-500.0,0.00032876,2]
[309978268,1704255043548,-500.0,0.00032876,2]
[309978269,1704255043558,-289.76,0.00032876,2]
[309978270,1704255043568,-500.0,0.00032876,2]
[309978271,1704255043578,-480.52969505,0.00032876,2]
[309978272,1704255043588,-500.0,0.00032876,2]